bitfinex/quotes_ETHUSD_20250602
["timestamp","ask_amount","ask_price","bid_price","bid_amount"]
[1748880367945,9.4561615,2542.6,2542.4,4.133]
[1748880368144,10.7950618,2542.6,2542.2,3.9335433]
[1748880368346,9.4561615,2542.4,2542.3,8.06636099]
[1748880368546,9.4561615,2542.4,2542.3,3.93336099]
[1748880368873,9.4561615,2542.4,2542.2,8.06755133]
[1748880369393,10.2657615,2542.4,2542.2,8.06755133]
[1748880369533,10.2657615,2542.4,2542.2,4.134]
[1748880369734,0.04916763,2542.3,2542.1,4.154]
[1748880369977,0.04916763,2542.3,2542.1,8.08772425]
[1748880370339,0.04916763,2542.3,2542.1,4.154]
[1748880370734,0.04916763,2542.3,2542.1,3.95373979]
[1748880371234,0.04916763,2542.3,2542.2,3.93360081]
[1748880371847,0.04916763,2542.3,2542.1,3.95366056]
[1748880372569,0.04916763,2542.3,2542.2,3.93360081]
[1748880374564,10.2657615,2542.4,2542.2,3.93360081]
[1748880374877,0.8096,2542.4,2542.2,3.93360081]
[1748880375255,0.8096,2542.4,2542.3,3.93344609]
[1748880375683,10.2725615,2542.7,2542.4,3.93320732]
[1748880375890,11.80437537,2542.7,2542.4,3.93320732]
[1748880376391,0.8164,2542.7,2542.5,3.93310067]
[1748880376555,0.8164,2542.7,2542.6,3.93298198]
[1748880376750,0.8164,2542.7,2542.6,8.06798198]
[1748880377166,10.2725615,2542.7,2542.4,4.135]
[1748880377360,0.04916332,2542.6,2542.5,3.93313667]
[1748880377705,0.38545731,2543.3,2543.1,3.93213352]
[1748880377917,9.50531581,2543.3,2543.0,4.135]
[1748880378051,9.4561615,2543.3,2543.0,4.135]
[1748880378262,0.04915451,2543.2,2543.0,4.135]
[1748880378456,9.4561615,2543.3,2543.2,3.9320541]
[1748880378658,11.00452713,2544.2,2543.2,3.9320541]
[1748880378659,10.2892615,2543.8,2543.7,3.9312812]
[1748880378968,2.64049434,2544.1,2543.7,3.9312812]
[1748880379178,0.0491419,2544.0,2543.8,3.93104806]
[1748880379490,0.0491419,2544.0,2543.8,8.06604806]
[1748880380420,0.0491419,2544.0,2543.8,4.135]
[1748880380977,0.44450353,2544.0,2543.7,3.93126892]
[1748880381209,0.0491419,2544.0,2543.7,3.93126892]
[1748880383420,0.0491419,2544.0,2543.8,3.93108144]
[1748880383951,0.0491419,2544.0,2543.7,3.9312143]
[1748880384083,9.4561615,2543.8,2543.6,4.135]
[1748880384294,0.04914316,2543.7,2543.6,8.06643576]
[1748880384796,9.4561615,2543.8,2543.6,8.06643576]
[1748880384992,0.38926886,2544.0,2543.8,3.93098985]
[1748880385197,0.0491393,2544.0,2543.7,3.93122516]
[1748880386633,9.4561615,2543.8,2543.5,3.93157164]
[1748880386925,0.04914348,2543.7,2543.6,3.93143576]
[1748880387294,0.04914348,2543.7,2543.5,8.06551364]
[1748880387495,0.7886,2543.6,2542.7,0.7977]
[1748880387768,9.4561615,2543.2,2542.8,3.93253591]
[1748880387905,0.04915453,2543.1,2542.8,3.93267264]
[1748880388099,0.87955453,2543.1,2542.8,8.06660279]
[1748880388322,0.87955453,2543.1,2542.8,4.134]
[1748880388529,0.87955453,2543.1,2542.8,8.06662871]
[1748880388893,0.87955453,2543.1,2542.8,3.93262871]
[1748880389285,0.8304,2543.1,2542.9,3.93242844]
[1748880389489,0.8304,2543.1,2542.7,4.134]
[1748880389490,0.8304,2543.1,2542.8,3.93258266]
[1748880390029,0.8304,2543.1,2542.7,8.06677179]
[1748880390331,0.8304,2543.1,2542.9,3.93248368]
[1748880390550,10.7978615,2543.5,2543.4,3.9317449]
[1748880390697,11.39728341,2543.5,2543.2,3.93193808]
[1748880391032,0.04915157,2543.4,2543.1,3.93212562]
[1748880391232,10.2478615,2543.5,2543.4,3.9317449]
[1748880391533,10.2478615,2543.5,2543.3,3.93181079]
[1748880391831,0.04914869,2543.4,2543.0,4.134]
[1748880392032,0.04914869,2543.4,2543.0,8.06627554]
[1748880392328,0.04914869,2543.4,2543.0,8.06627483]
[1748880392631,0.04914869,2543.4,2543.0,8.0663019]
[1748880392858,13.38824301,2543.2,2542.7,3.93268506]
[1748880393009,13.38824301,2543.2,2542.9,3.93249927]
[1748880393010,0.04915724,2543.1,2542.9,3.93249927]
[1748880393205,0.04915724,2543.1,2542.8,4.134]
[1748880393443,0.8155,2543.0,2542.8,4.134]
[1748880393835,0.8155,2543.0,2542.7,8.06676326]
[1748880394056,0.04915936,2542.9,2542.7,8.06676326]
[1748880394240,9.98500905,2542.9,2542.1,8.86189041]
[1748880394411,9.4561615,2542.6,2542.2,4.134]
[1748880394613,0.83256753,2542.5,2542.2,8.06753672]
[1748880394861,0.7834,2542.7,2542.4,3.93318935]
[1748880395145,1.23374794,2542.7,2542.4,3.93318935]
[1748880395307,1.18458116,2542.7,2542.5,3.93312918]
[1748880395509,0.04916581,2542.6,2542.4,3.93315868]
[1748880395738,2.73904391,2542.7,2542.4,3.93315868]
[1748880395916,2.73904391,2542.7,2542.3,3.93344609]
[1748880396120,2.73904391,2542.7,2542.4,3.93319506]
[1748880397886,2.73904391,2542.7,2542.5,3.93313468]
[1748880398051,2.68987713,2542.7,2542.5,3.93313468]
[1748880398861,2.68987713,2542.7,2542.4,3.93323165]
[1748880399167,2.73904392,2542.7,2542.4,3.93323165]
[1748880400574,0.40118116,2542.7,2542.6,3.93298198]
[1748880400868,9.4561615,2542.8,2542.2,8.06756781]
[1748880401035,9.4561615,2542.8,2542.6,3.93291322]
[1748880401247,0.04916425,2542.7,2542.6,3.93291322]
[1748880401433,9.4561615,2542.8,2542.6,3.93290324]
[1748880402072,9.4561615,2542.8,2542.5,3.93308785]
[1748880402366,9.4561615,2542.8,2542.6,3.93285617]
[1748880402568,0.04916322,2542.7,2542.5,3.93304688]
[1748880402753,0.04916322,2542.7,2542.4,3.9332032]
[1748880402955,0.04916322,2542.7,2542.5,3.93304927]
[1748880403326,0.44290859,2542.7,2542.5,3.93304927]
[1748880403534,0.04916322,2542.7,2542.5,3.93304927]
[1748880403753,0.04916322,2542.7,2542.5,3.93313667]
[1748880403968,9.4561615,2542.8,2542.6,3.93289375]
[1748880404466,0.04916322,2542.7,2542.4,4.134]
[1748880404671,0.04916322,2542.7,2542.5,3.93312901]
[1748880405573,0.04916322,2542.7,2542.6,3.93298198]
[1748880405806,5.04427006,2543.1,2543.0,3.93236335]
[1748880405807,1.112,2543.1,2543.0,3.93236335]
[1748880406474,4.48165186,2543.5,2543.0,3.93236335]
[1748880406475,0.8319,2543.5,2543.0,4.134]
[1748880406649,0.8319,2543.5,2543.1,0.41733248]
[1748880406849,0.0491513,2543.4,2543.2,3.9320541]
[1748880407054,0.8319,2543.5,2543.4,3.9317449]
[1748880407277,0.8319,2543.5,2543.3,3.93185071]
[1748880407577,0.8319,2543.5,2543.3,3.93189451]
[1748880407787,10.2880615,2543.5,2543.0,4.134]
[1748880407980,1.4760176,2543.4,2543.0,8.06628005]
[1748880408151,9.4561615,2543.2,2542.9,3.93248606]
[1748880408357,0.04915423,2543.1,2542.9,4.134]
[1748880408555,9.4561615,2543.2,2543.0,3.93236335]
[1748880409390,9.4561615,2543.2,2542.9,8.06643366]
[1748880409542,10.93764132,2543.2,2542.9,8.06643366]
[1748880409739,10.93764132,2543.2,2542.9,4.134]
[1748880409940,0.04915692,2543.1,2542.8,3.93260534]
[1748880410139,9.4561615,2542.9,2542.6,3.93290453]
[1748880410373,0.049161,2542.8,2542.6,8.06697922]
[1748880410574,0.049161,2542.8,2542.5,3.93305812]
[1748880410776,9.4561615,2542.9,2542.7,3.9328273]
[1748880410982,0.8203,2542.6,2542.2,3.93360081]
[1748880411168,0.04916818,2542.5,2542.2,8.06760081]
[1748880411518,10.2764615,2542.6,2542.3,3.93343677]
[1748880411859,10.2764615,2542.6,2542.4,3.93328866]
[1748880412081,10.2764615,2542.6,2542.4,3.93321591]
[1748880412454,10.2764615,2542.6,2542.4,3.93317455]
[1748880413092,10.2764615,2542.6,2542.3,3.93338095]
[1748880413294,10.2764615,2542.6,2542.4,3.93314857]
[1748880413803,0.04916689,2542.5,2542.3,3.9333328]
[1748880414104,0.04916689,2542.5,2542.4,3.93329137]
[1748880414296,10.2764615,2542.6,2542.4,3.93329137]
[1748880414496,10.2764615,2542.6,2542.3,3.9333328]
[1748880414697,10.2764615,2542.6,2542.4,3.93325014]
[1748880414857,0.8203,2542.6,2542.4,3.93325014]
[1748880416789,0.8203,2542.6,2542.3,3.93338215]
[1748880417106,0.8694669,2542.6,2542.3,3.93344026]
[1748880417288,14.25871933,2542.6,2542.2,8.06759846]
[1748880417599,10.2764615,2542.6,2542.2,8.06759846]
[1748880418003,10.2764615,2542.6,2542.3,3.933383]
[1748880418408,14.20945799,2542.6,2542.2,8.06753913]
[1748880418707,0.04916917,2542.5,2542.2,8.06753913]
[1748880419018,0.04916917,2542.5,2542.4,3.93329137]
[1748880419182,0.8203,2542.6,2542.4,3.93329137]
[1748880419524,0.86946758,2542.6,2542.3,3.93335426]
[1748880419882,0.86946758,2542.6,2542.2,8.06754678]
[1748880420077,0.8203,2542.6,2542.4,3.93328931]
[1748880420324,0.39363856,2542.7,2542.5,3.93313667]
[1748880420522,1.112,2543.0,2542.9,3.93251799]
[1748880420824,1.112,2543.0,2542.6,4.134]
[1748880421120,1.112,2543.0,2542.7,3.93280991]
[1748880421300,10.2621615,2542.9,2542.2,3.93360081]
[1748880421502,0.55,2542.7,2542.4,3.93328055]
[1748880421726,9.50532869,2542.6,2542.3,4.134]
[1748880421931,3.93328163,2542.5,2542.1,0.06419041]
[1748880422094,4.48360081,2542.2,2542.1,0.02]
[1748880422281,2.07813879,2542.2,2542.1,0.02]
[1748880422625,11.3649615,2542.6,2542.1,3.95368889]
[1748880422784,15.29796093,2542.6,2542.2,3.93352641]
[1748880422985,15.29796093,2542.6,2542.1,4.153]
[1748880422986,3.93330718,2542.4,2542.1,4.153]
[1748880423291,9.50533254,2542.3,2542.1,0.02]
[1748880423620,9.4561615,2542.3,2542.1,0.02]
[1748880424325,3.93360081,2542.2,2542.1,0.02]
[1748880424519,4.77957562,2542.2,2542.1,0.02]
[1748880424894,5.32957562,2542.2,2542.1,0.02]
[1748880426195,5.47461283,2542.2,2542.1,0.02]
[1748880426804,1.3468,2542.2,2542.1,0.02]
[1748880427137,18.31779065,2542.3,2542.1,0.02]
[1748880427138,1.112,2542.3,2542.1,0.02]
[1748880427282,0.0491745,2542.2,2542.1,0.02]
[1748880427481,3.98277531,2542.2,2542.1,0.02]
[1748880427915,0.0491745,2542.2,2542.1,0.02]
[1748880428119,5.04450891,2542.2,2542.1,0.02]
[1748880428621,1.6609081,2542.2,2542.1,0.02]
[1748880428826,5.59450891,2542.2,2542.1,0.02]
[1748880429212,1.6609081,2542.2,2542.1,0.02]
[1748880429410,6.35980891,2542.2,2542.1,0.02]
[1748880430489,2.4262081,2542.2,2542.1,0.02]
[1748880430691,6.35980891,2542.2,2542.1,0.02]
[1748880436530,15.81597041,2542.2,2542.1,0.02]
[1748880436732,15.76679591,2542.2,2542.1,0.02]
[1748880439101,0.55,2542.1,2541.1,0.8177]
[1748880439302,3.93498756,2541.4,2541.1,0.02]
[1748880439637,9.4561615,2541.2,2541.1,0.02]
[1748880439931,14.15832699,2541.5,2541.1,0.02]
[1748880440229,0.0491918,2541.4,2541.1,0.02]
[1748880441225,0.0491918,2541.4,2541.1,3.95529751]
[1748880441414,0.7639,2541.7,2541.1,0.02]
[1748880441617,3.9339895,2542.0,2541.5,3.93457347]
[1748880441791,1.111,2542.0,2541.8,3.9340932]
[1748880441995,1.111,2542.0,2541.7,3.93429299]
[1748880442695,1.111,2542.0,2541.6,3.93451799]
[1748880442941,1.111,2542.0,2541.4,4.134]
[1748880442942,1.16017845,2542.0,2541.5,3.93456428]
[1748880443119,1.16017845,2542.0,2541.4,4.134]
[1748880443291,1.111,2542.0,2541.7,3.9342844]
[1748880443493,1.111,2542.0,2541.7,3.93430838]
[1748880444635,1.111,2542.0,2541.8,4.69861577]
[1748880446193,4.48340345,2542.4,2541.8,4.69859878]
[1748880446545,4.81027644,2542.6,2542.1,3.93366128]
[1748880446747,10.71557286,2542.6,2542.1,3.933674]
[1748880446945,5.97972668,2542.6,2541.8,0.7644]
[1748880447158,4.05664425,2542.6,2542.2,3.93346472]
[1748880447335,0.8028,2542.3,2541.8,12.69857951]
[1748880447656,0.04917518,2542.2,2541.6,4.133]
[1748880447957,3.93383604,2542.1,2541.6,8.06745172]
[1748880448106,0.04917861,2542.0,2541.7,3.93436339]
[1748880448303,0.04917861,2542.0,2541.6,4.133]
[1748880448533,3.98311776,2542.0,2541.6,8.06746473]
[1748880448921,3.98311776,2542.0,2541.6,3.93446473]
[1748880449117,3.93418897,2541.9,2541.4,3.93477332]
[1748880449337,3.98341557,2541.8,2541.4,8.06777332]
[1748880449664,9.4561615,2541.5,2541.2,3.93511155]
[1748880449842,0.04919022,2541.4,2541.2,3.93511155]
[1748880450182,0.04919022,2541.4,2541.1,0.02]
[1748880450377,2.15858495,2541.4,2541.1,0.02]
[1748880450964,9.4561615,2541.2,2541.1,0.02]
[1748880451129,13.39131024,2541.2,2541.1,0.02]
[1748880451328,14.3303565,2541.2,2541.1,0.02]
[1748880451526,15.4413565,2541.2,2541.1,0.02]
[1748880451821,4.26493289,2541.2,2541.1,0.02]
[1748880452025,0.98824283,2541.2,2541.1,0.02]
[1748880452225,0.38904626,2541.2,2541.1,0.02]
[1748880452458,0.0491969,2541.2,2541.1,0.02]
[1748880452655,0.0491969,2541.2,2541.1,3.9553036]
[1748880453055,0.0491969,2541.2,2541.1,0.02]
[1748880453830,0.0491969,2541.2,2541.1,3.9553036]
[1748880454061,1.49461661,2541.3,2541.1,3.9553036]
[1748880454449,0.38361661,2541.3,2541.1,3.95522042]
[1748880454645,0.04919157,2541.3,2541.1,3.95522042]
[1748880456377,0.43477545,2541.3,2541.1,3.95522042]
[1748880456880,0.38558388,2541.3,2541.1,3.95522042]
[1748880457176,0.04919158,2541.2,2541.1,0.02]
[1748880457481,0.04919195,2541.3,2541.1,3.9552179]
[1748880457784,0.04919195,2541.3,2541.1,0.02]
[1748880458573,0.04919195,2541.3,2541.1,3.95525719]
[1748880458841,1.16019158,2541.4,2541.1,3.95525719]
[1748880459053,1.16019158,2541.4,2541.2,3.93507779]
[1748880459857,1.111,2541.4,2541.2,3.93507779]
[1748880460055,1.50851957,2541.4,2541.2,3.93507779]
[1748880460251,1.9271,2541.8,2541.3,0.7948]
[1748880460605,0.8161,2542.2,2542.1,3.93375555]
[1748880460813,2.38811524,2542.5,2542.1,3.93375555]
[1748880460967,0.76289117,2542.4,2541.8,4.133]
[1748880461144,3.93377602,2542.1,2541.8,4.133]
[1748880461342,10.32143581,2542.1,2541.6,4.133]
[1748880461643,14.20608271,2542.1,2541.6,8.06744952]
[1748880461871,10.2722615,2542.1,2541.4,0.7948]
[1748880462084,3.93406506,2541.9,2541.4,4.72963559]
[1748880462282,0.04918407,2541.8,2541.6,3.93450159]
[1748880462460,0.04918117,2542.0,2541.6,3.93450159]
[1748880462659,0.04918117,2541.9,2541.6,3.93450159]
[1748880464780,0.04918117,2541.9,2541.7,3.93436054]
[1748880465167,2.92990043,2542.0,2541.6,3.9344436]
[1748880465373,6.91305778,2542.0,2541.5,3.9346151]
[1748880465762,2.97908081,2542.0,2541.5,3.93457642]
[1748880465969,6.91300551,2542.0,2541.5,3.93456282]
[1748880466165,6.91300551,2542.0,2541.5,3.9345925]
[1748880466488,1.7185267,2541.9,2541.5,3.9345925]
[1748880466684,0.04918119,2541.8,2541.5,3.9345925]
[1748880466892,0.04918119,2541.8,2541.6,3.93452665]
[1748880467063,0.04918119,2541.8,2541.5,3.93461498]
[1748880467387,0.0491812,2541.9,2541.6,3.93442936]
[1748880467557,1.9271,2542.1,2541.7,3.93425649]
[1748880467761,0.04918039,2542.0,2541.7,3.93425649]
[1748880468183,0.04918039,2542.0,2541.9,3.93406506]
[1748880468391,3.98273521,2542.3,2541.4,0.7948]
[1748880468696,3.93374069,2542.2,2541.7,3.93429367]
[1748880468844,3.9339103,2542.0,2541.5,3.93458862]
[1748880469048,1.39310591,2541.9,2541.4,0.7948]
[1748880469283,1.39310591,2541.9,2541.6,3.93440228]
[1748880469489,0.55,2542.3,2542.0,3.93377739]
[1748880469652,1.1591754,2542.3,2541.9,3.93394287]
[1748880470289,5.09268559,2542.3,2541.9,3.93403851]
[1748880470586,5.09268559,2542.3,2541.8,3.93415118]
[1748880470763,7.0164599,2542.3,2541.8,3.93415118]
[1748880471487,3.93360335,2542.2,2541.8,3.93415118]
[1748880471664,0.04917445,2542.1,2541.8,3.93415118]
[1748880472064,0.04917445,2542.1,2541.7,3.93428083]
[1748880472261,0.04917445,2542.1,2541.8,3.93421084]
[1748880472679,0.04917446,2542.2,2541.8,3.93421084]
[1748880473063,0.8134,2542.0,2541.6,3.93452943]
[1748880473276,0.04918198,2541.9,2541.6,3.93437576]
[1748880473584,0.86258066,2542.0,2541.7,3.93434323]
[1748880473792,0.86258066,2542.0,2541.6,3.93443724]
[1748880473946,0.8134,2542.0,2541.7,3.93435754]
[1748880474145,1.8957055,2542.0,2541.7,3.93435754]
[1748880474361,1.8957055,2542.0,2541.3,8.0]
[1748880474562,0.04918012,2541.9,2541.6,3.93444706]
[1748880475000,1.8957055,2542.0,2541.6,3.93444706]
[1748880475176,1.8957055,2542.0,2541.7,3.93437294]
[1748880475377,1.8957055,2542.0,2541.6,3.93445156]
[1748880475700,1.8957055,2542.0,2541.7,3.93437031]
[1748880476093,0.04918089,2541.9,2541.6,3.93442479]
[1748880476294,0.04918089,2541.9,2541.7,3.93437463]
[1748880476487,1.8957055,2542.0,2541.7,3.93437463]
[1748880476682,1.5777438,2541.9,2541.6,3.93445196]
[1748880476869,1.5777438,2541.9,2541.4,4.132]
[1748880477207,1.5777438,2541.9,2541.5,3.93456162]
[1748880477400,1.5777438,2541.9,2541.6,3.93452715]
[1748880477564,1.5777438,2541.9,2541.7,3.93437316]
[1748880477902,1.5777438,2541.9,2541.6,3.93439737]
[1748880478106,0.23911438,2541.8,2541.5,3.93459386]
[1748880478258,0.23911438,2541.8,2541.6,3.93441423]
[1748880478463,0.23911438,2541.8,2541.5,3.93459298]
[1748880478698,0.23911438,2541.8,2541.4,4.132]
[1748880479004,0.23911438,2541.8,2541.6,3.93438407]
[1748880479408,0.778,2541.6,2541.0,0.7977]
[1748880479603,14.16931024,2541.2,2540.5,4.73389292]
[1748880479906,16.13624126,2541.2,2540.6,3.93602221]
[1748880480204,16.13624126,2541.2,2540.7,3.93591713]
[1748880480537,16.13624126,2541.2,2540.5,0.7977]
[1748880481216,16.13624126,2541.2,2540.7,3.93582134]
[1748880481511,13.31109252,2541.2,2540.6,3.93601769]
[1748880481710,13.31109252,2541.2,2540.8,3.93574723]
[1748880481863,17.24624126,2541.2,2540.7,3.93584936]
[1748880482071,17.24624126,2541.2,2540.7,3.93586137]
[1748880482464,13.31109252,2541.2,2540.7,3.93587633]
[1748880482668,13.31109252,2541.2,2540.7,3.9359185]
[1748880483096,13.31109252,2541.2,2540.8,3.9357245]
[1748880483508,2.58471358,2541.2,2541.0,3.93543767]
[1748880483673,1.49978256,2541.2,2541.0,3.93539069]
[1748880483874,1.11,2541.2,2540.6,8.06698175]
[1748880484075,14.50131024,2541.2,2540.6,8.06694545]
[1748880484346,14.50131024,2541.2,2540.8,3.9357403]
[1748880484493,10.5661615,2541.2,2540.7,3.93583545]
[1748880484694,10.5661615,2541.2,2540.8,3.93570029]
[1748880485225,12.56269449,2541.2,2540.8,3.93570029]
[1748880485426,12.56269449,2541.2,2541.0,3.93544872]
[1748880485633,1.11,2541.2,2541.0,3.93544541]
[1748880485933,1.15919362,2541.2,2541.0,3.93544541]
[1748880486294,1.15919362,2541.2,2540.9,3.93549063]
[1748880486499,0.45185573,2541.2,2540.9,3.93549063]
[1748880487332,0.45185573,2541.2,2541.0,3.93541601]
[1748880487633,4.70730887,2541.6,2541.1,3.95520367]
[1748880487937,0.04918973,2541.5,2541.1,3.95520367]
[1748880488235,3.9349327,2541.4,2541.1,0.02]
[1748880488393,0.04918978,2541.3,2541.1,0.02]
[1748880488789,0.55,2541.4,2541.1,0.02]
[1748880489226,0.04919433,2541.3,2541.1,3.95527097]
[1748880489439,0.04919125,2541.4,2541.1,3.95527097]
[1748880489605,1.60727384,2541.4,2541.1,3.95527097]
[1748880489805,10.824194,2541.5,2541.3,3.9349939]
[1748880490012,0.38794256,2541.5,2541.4,3.93483906]
[1748880490329,1.15918563,2541.7,2541.3,3.93492688]
[1748880490842,1.15918563,2541.7,2541.3,3.93497435]
[1748880491201,5.09366687,2541.7,2541.2,4.73280923]
[1748880491525,6.30185933,2541.6,2541.2,3.93513594]
[1748880491693,0.04918591,2541.5,2541.1,3.95523764]
[1748880491936,0.8184,2541.8,2541.7,3.93437463]
[1748880492135,1.11,2542.2,2541.9,3.93399369]
[1748880492340,0.8184,2542.3,2541.5,0.7666]
[1748880492539,0.40030692,2542.3,2541.6,0.03934337]
[1748880492736,3.93353118,2542.3,2541.8,3.93414543]
[1748880492895,1.73230461,2542.2,2541.9,3.93404863]
[1748880493118,1.73230461,2542.2,2541.8,3.93413992]
[1748880493827,5.66590749,2542.2,2541.8,3.93413992]
[1748880494351,5.66590749,2542.2,2541.7,4.131]
[1748880494352,1.8939,2542.6,2541.7,4.131]
[1748880494663,3.93336079,2542.4,2541.9,3.933994]
[1748880494860,0.04917117,2542.3,2541.8,4.73191984]
[1748880495026,0.04917117,2542.3,2541.9,3.93396907]
[1748880495222,3.98270928,2542.3,2541.8,4.73186894]
[1748880495429,0.04917117,2542.3,2541.9,3.93401799]
[1748880495627,3.9827308,2542.3,2541.8,4.7318518]
[1748880495926,5.36665242,2542.3,2541.8,4.7318518]
[1748880496241,1.43309279,2542.3,2542.0,3.93388451]
[1748880496451,5.36661072,2542.3,2541.8,0.7977]
[1748880496762,5.36661072,2542.3,2541.9,3.93405797]
[1748880496763,1.43309279,2542.3,2541.9,3.93405797]
[1748880496963,1.43309279,2542.3,2541.8,0.7977]
[1748880497165,0.40062172,2542.4,2541.8,0.7977]
[1748880497341,0.0491761,2542.4,2542.0,3.93381159]
[1748880497970,0.0491761,2542.4,2542.1,3.93366574]
[1748880498266,0.04916937,2542.5,2542.1,3.93366574]
[1748880498426,0.04916937,2542.5,2542.2,3.93347444]
[1748880498864,0.04916937,2542.5,2542.1,3.93367524]
[1748880499062,0.04916937,2542.5,2542.1,3.93375555]
[1748880499396,0.04916937,2542.5,2542.2,3.93356124]
[1748880499928,0.04916937,2542.5,2542.1,3.93367507]
[1748880500128,13.38953128,2542.4,2541.9,3.93399141]
[1748880500328,3.98272103,2542.3,2541.8,3.93413445]
[1748880500563,3.98268289,2542.3,2541.8,3.9342065]
[1748880500775,5.80787345,2542.3,2541.9,3.93406166]
[1748880501874,1.87436381,2542.3,2541.9,3.93406166]
[1748880502768,5.80782106,2542.3,2541.9,3.93406166]
[1748880502938,1.87436381,2542.3,2541.9,3.93406166]
[1748880503143,5.75864188,2542.3,2541.9,3.93406166]
[1748880503885,5.75864188,2542.3,2541.8,3.93414179]
[1748880504063,5.80781791,2542.3,2541.8,3.93414179]
[1748880505975,3.933621,2542.2,2541.8,3.93414179]
[1748880506291,3.9343078,2541.8,2541.3,3.93490151]
[1748880506488,0.04918375,2541.7,2541.5,3.9346079]
[1748880506790,4.7418124,2541.6,2541.1,3.95521645]
[1748880507081,9.4561615,2541.4,2541.2,3.93513264]
[1748880507303,0.8072,2541.6,2541.4,3.93474942]
[1748880507468,0.8072,2541.6,2541.1,0.02]
[1748880507784,0.04918796,2541.5,2541.3,3.93492356]
[1748880507991,0.8072,2541.6,2541.3,3.93492356]
[1748880508159,0.85638764,2541.6,2541.3,3.93492356]
[1748880508368,0.85638764,2541.6,2541.2,3.93506231]
[1748880508681,0.85638764,2541.6,2541.2,3.93505579]
[1748880508998,0.85638796,2541.6,2541.2,3.93507868]
[1748880509154,1.83968775,2541.6,2541.2,3.93507868]
[1748880509887,0.85638796,2541.6,2541.1,0.02]
[1748880510091,0.85638796,2541.6,2541.3,3.9349016]
[1748880510249,0.85638796,2541.6,2541.1,3.95526073]
[1748880510684,0.85638796,2541.6,2541.1,0.02]
[1748880510854,0.85638796,2541.6,2541.4,3.93481147]
[1748880511192,0.8482843,2541.8,2541.4,3.93473863]
[1748880511359,1.35890347,2541.8,2541.4,3.93473863]
[1748880511566,5.29320047,2541.8,2541.1,0.02]
[1748880511763,13.39071481,2541.6,2541.2,3.93514874]
[1748880511961,0.049188,2541.5,2541.3,3.93498951]
[1748880512460,0.049188,2541.5,2541.2,3.93507454]
[1748880512675,0.049188,2541.5,2541.1,3.95522729]
[1748880512879,0.049188,2541.5,2541.3,3.93494319]
[1748880513082,0.049188,2541.5,2541.2,3.93512206]
[1748880513255,3.98387269,2541.5,2541.1,0.02]
[1748880513453,3.93514874,2541.2,2541.1,0.02]
[1748880513654,5.64234615,2541.2,2541.1,0.02]
[1748880516885,6.04311415,2541.2,2541.1,0.02]
[1748880517088,10.93161415,2541.2,2541.1,0.02]
[1748880517266,10.88241674,2541.2,2541.1,0.02]
[1748880517469,13.30977422,2541.2,2541.1,0.02]
[1748880518226,4.13762548,2541.2,2541.1,0.02]
[1748880518514,5.14461693,2541.2,2541.1,0.02]
[1748880518881,5.69461693,2541.2,2541.1,0.02]
[1748880519483,1.75946819,2541.2,2541.1,0.02]
[1748880519685,2.31846819,2541.2,2541.1,0.02]
[1748880519885,1.55896819,2541.2,2541.1,0.02]
[1748880520392,2.44098354,2541.2,2541.1,0.02]
[1748880521795,0.44996819,2541.2,2541.1,0.02]
[1748880522397,0.44996819,2541.2,2541.1,3.9553036]
[1748880522719,0.8061,2542.0,2541.2,0.7977]
[1748880523009,0.04918406,2541.8,2541.3,3.93489422]
[1748880523316,0.04918406,2541.8,2541.4,3.93474349]
[1748880523686,14.3119233,2541.8,2541.3,3.93492289]
[1748880523914,14.3119233,2541.8,2541.2,4.73280375]
[1748880523915,9.4561615,2541.5,2541.2,4.73280375]
[1748880524121,9.4561615,2541.5,2541.3,3.93488671]
[1748880524468,10.32849522,2541.8,2541.2,0.7977]
[1748880524700,14.26273298,2541.8,2541.3,3.93489488]
[1748880525001,0.04918668,2541.7,2541.3,3.93489488]
[1748880527533,3.9835796,2541.7,2541.2,4.73275899]
[1748880527824,9.4561615,2541.5,2541.1,3.95529214]
[1748880528030,9.4561615,2541.5,2541.3,3.93485603]
[1748880528192,0.8269,2541.6,2541.3,3.93485603]
[1748880528830,0.04918885,2541.6,2541.4,3.93480684]
[1748880529044,0.04918885,2541.6,2541.2,3.93514874]
[1748880529197,0.04918885,2541.6,2541.3,3.93492322]
[1748880530093,0.04918885,2541.6,2541.1,0.02]
[1748880530331,0.04918885,2541.6,2541.2,3.93505822]
[1748880530932,3.98377512,2541.6,2541.1,3.9553034]
[1748880531130,3.93472371,2541.5,2541.1,0.02]
[1748880531449,0.04919041,2541.4,2541.3,3.9349939]
[1748880531655,0.04918886,2541.5,2541.3,3.9349939]
[1748880531946,0.04918886,2541.5,2541.1,3.95525832]
[1748880532243,0.04918886,2541.5,2541.1,0.02]
[1748880532448,0.04918886,2541.5,2541.3,3.93497168]
[1748880532654,0.55,2541.5,2541.1,3.95515219]
[1748880532950,0.04919175,2541.4,2541.1,3.95515219]
[1748880533164,0.04919175,2541.4,2541.1,0.02]
[1748880533336,13.94131024,2541.2,2541.1,0.02]
[1748880534566,14.33253897,2541.2,2541.1,0.02]
[1748880534737,15.11923897,2541.2,2541.1,0.02]
[1748880535520,23.11923897,2541.2,2541.1,0.02]
[1748880536997,23.11923897,2541.2,2540.1,0.02]
[1748880536998,9.4561615,2540.4,2540.1,0.02]
[1748880537124,0.829,2540.2,2540.1,0.02]
[1748880537326,5.31569789,2540.2,2540.1,0.02]
[1748880537752,1.4282094,2540.2,2540.1,0.02]
[1748880537950,5.36490729,2540.2,2540.1,0.02]
[1748880538173,1.4282094,2540.2,2540.1,0.02]
[1748880538370,7.38230743,2540.2,2540.1,0.02]
[1748880538543,3.44560954,2540.2,2540.1,0.02]
[1748880539689,7.38230743,2540.2,2540.1,0.02]
[1748880540178,8.48930743,2540.2,2540.1,0.02]
[1748880540382,8.44009803,2540.2,2540.1,0.02]
[1748880540695,0.55,2539.9,2539.1,0.7956]
[1748880540855,9.4561615,2539.3,2539.1,4.73398376]
[1748880541057,9.4561615,2539.6,2539.1,4.73398376]
[1748880541389,0.0492094,2539.5,2539.2,3.93822072]
[1748880541687,0.4517571,2539.5,2539.2,3.93824826]
[1748880541886,0.52763079,2539.8,2539.1,4.73399127]
[1748880542085,3.12440014,2540.2,2539.1,4.73399127]
[1748880542086,0.7956,2540.2,2539.7,0.7528]
[1748880542387,9.4561615,2540.0,2539.2,0.7528]
[1748880542580,0.5992094,2539.9,2539.4,4.128]
[1748880542802,4.53646754,2539.9,2539.4,8.06588111]
[1748880542995,9.4561615,2539.7,2539.2,0.7528]
[1748880543283,9.4561615,2539.4,2539.1,0.02]